lending/lending_fUSD_20250808
["ID","MTS","AMOUNT","RATE_DAILY","PERIOD"]
[378041155,1754676636463,-159.41263555,0.00024731,2]
[378041156,1754676636472,-211.62674257,0.000248,3]
[378041157,1754676636485,-60936.6192245,0.000248,3]
[378041158,1754676636494,-2435.2947,0.00024831,2]
[378041159,1754676636503,-150.0,0.00024873,2]
[378041160,1754676636512,-287.34156779,0.0002488,2]
[378041161,1754676636521,-211.62674257,0.0002489,3]
[378041162,1754676636531,-30468.3096122,0.0002489,3]
[378041163,1754676636540,-771.63506238,0.00024896,2]
[378041164,1754676636549,-457.64618948,0.000249,3]
[378041165,1754676636558,-842.44706758,0.000249,3]
[378041166,1754676636567,-3055.91726753,0.00024921,3]
[378041175,1754676637655,-1163.39689181,0.00020225,3]
[378041176,1754676637666,-724.60310819,0.00020225,3]
[378041177,1754676637674,-500.0,0.00024241,2]
[378041178,1754676637683,-500.0,0.00024241,2]
[378041179,1754676637691,-500.0,0.00024241,2]
[378041180,1754676637701,-500.0,0.00024241,2]
[378041181,1754676637710,-500.0,0.00024241,2]
[378041182,1754676637718,-81.53190718,0.00024241,2]
[378041183,1754676637760,-418.46809282,0.00024241,2]
[378041184,1754676637768,-500.0,0.00024241,2]
[378041185,1754676637776,-83.87474328,0.00024241,2]
[378041186,1754676637814,-416.12525672,0.00024241,2]
[378041187,1754676637822,-646.07705751,0.00024241,2]
[378041188,1754676637830,-500.0,0.00024241,2]
[378041189,1754676637838,-500.0,0.00024241,2]
[378041190,1754676637848,-500.0,0.00024241,2]
[378041191,1754676637856,-1888.0,0.00024656,3]
[378041192,1754676637865,-1888.0,0.00024656,3]
[378041193,1754676637875,-400.0,0.00024657,2]
[378041194,1754676637883,-400.0,0.00024657,2]
[378041195,1754676637892,-400.0,0.00024657,2]
[378041196,1754676637901,-4786.54144936,0.00024921,3]
[378041197,1754676637912,-389.33701216,0.00024921,3]
[378041198,1754676637922,-4686.74612,0.00024921,3]
[378041199,1754676637939,-2043.9,0.00024921,3]
[378041218,1754676639973,-1888.0,0.00020725,3]
[378041219,1754676639983,-866.0,0.00021034,2]
[378041220,1754676639993,-3776.0,0.00022965,3]
[378041221,1754676640002,-866.0,0.00024034,2]
[378041222,1754676640012,-1000.0,0.00024042,2]
[378041223,1754676640021,-15505.86776315,0.00024921,3]
[378041224,1754676640031,-336.53,0.00024931,2]
[378041225,1754676640041,-400.0,0.00024931,2]
[378041226,1754676640051,-400.0,0.00024931,2]
[378041227,1754676640061,-400.0,0.00024931,2]
[378041228,1754676640071,-419.74880668,0.00024931,2]
[378041229,1754676640081,-400.0,0.00024931,2]
[378041230,1754676640090,-400.0,0.00024931,2]
[378041231,1754676640100,-327.25,0.00024931,2]
[378041232,1754676640110,-382.59,0.00024931,2]
[378041233,1754676640120,-192.38,0.00024931,2]
[378041234,1754676640130,-338.48,0.00024931,2]
[378041235,1754676640139,-400.0,0.00024931,2]
[378041236,1754676640148,-29.43743017,0.00024931,2]
[378041237,1754676640164,-370.56256983,0.00024931,2]
[378041238,1754676640174,-400.0,0.00024931,2]
[378041239,1754676640184,-400.0,0.00024931,2]
[378041240,1754676640194,-400.0,0.00024931,2]
[378041241,1754676640207,-400.0,0.00024931,2]
[378041242,1754676640216,-400.0,0.00024931,2]
[378041243,1754676640227,-290.22169806,0.00024931,2]
[378041244,1754676640239,-109.77830194,0.00024931,2]
[378041246,1754676640248,-400.0,0.00024931,2]
[378041248,1754676640258,-400.0,0.00024931,2]
[378041249,1754676640268,-400.0,0.00024931,2]
[378041250,1754676640277,-400.0,0.00024931,2]
[378041251,1754676640286,-42.94045426,0.00024931,2]
[378041252,1754676640305,-357.05954574,0.00024931,2]
[378041253,1754676640315,-400.0,0.00024931,2]
[378041254,1754676640324,-240.77,0.00024931,2]
[378041255,1754676640334,-198.74,0.00024931,2]
[378041256,1754676640343,-400.0,0.00024931,2]
[378041257,1754676640352,-358.67,0.00024931,2]
[378041258,1754676640361,-188.5,0.00024931,2]
[378041259,1754676640370,-423.69,0.00024931,2]
[378041260,1754676640379,-400.0,0.00024931,2]
[378041261,1754676640389,-400.0,0.00024931,2]
[378041262,1754676640398,-236.47,0.00024931,2]
[378041263,1754676640408,-389.89,0.00024931,2]
[378041264,1754676640418,-400.0,0.00024931,2]
[378041265,1754676640427,-314.81,0.00024931,2]
[378041266,1754676640438,-400.0,0.00024931,2]
[378041267,1754676640450,-481.9,0.00024931,2]
[378041268,1754676640459,-275.17,0.00024931,2]
[378041269,1754676640469,-400.0,0.00024931,2]
[378041270,1754676640479,-450.27,0.00024931,2]
[378041271,1754676640488,-400.0,0.00024931,2]
[378041272,1754676640497,-491.18,0.00024931,2]
[378041273,1754676640507,-400.0,0.00024931,2]
[378041274,1754676640516,-257.14,0.00024931,2]
[378041275,1754676640525,-400.0,0.00024931,2]
[378041276,1754676640636,-400.0,0.00024931,2]
[378041277,1754676640646,-400.0,0.00024931,2]
[378041278,1754676640655,-1037.96,0.00024931,2]
[378041279,1754676640665,-951.46,0.00024931,2]
[378041280,1754676640674,-262.54,0.00024931,2]
[378041281,1754676640683,-400.0,0.00024931,2]
[378041282,1754676640693,-246.71,0.00024931,2]
[378041283,1754676640702,-400.0,0.00024931,2]
[378041284,1754676640711,-400.0,0.00024931,2]
[378041285,1754676640721,-400.0,0.00024931,2]
[378041286,1754676640730,-169.88,0.00024931,2]
[378041287,1754676640739,-505.16,0.00024931,2]
[378041288,1754676640748,-507.25,0.00024931,2]
[378041289,1754676640759,-400.0,0.00024931,2]
[378041290,1754676640770,-400.0,0.00024931,2]
[378041291,1754676640779,-169.53,0.00024931,2]
[378041292,1754676640789,-400.0,0.00024931,2]
[378041293,1754676640800,-272.68,0.00024931,2]
[378041294,1754676640810,-409.27,0.00024931,2]
[378041295,1754676640819,-400.0,0.00024931,2]
[378041296,1754676640829,-185.02,0.00024931,2]
[378041297,1754676640839,-400.0,0.00024931,2]
[378041298,1754676640848,-400.0,0.00024931,2]
[378041299,1754676640858,-400.0,0.00024931,2]
[378041300,1754676640867,-309.49,0.00024931,2]
[378041301,1754676640878,-400.0,0.00024931,2]
[378041302,1754676640888,-421.16,0.00024931,2]
[378041303,1754676640897,-525.57,0.00024931,2]
[378041304,1754676640907,-400.0,0.00024931,2]
[378041305,1754676640917,-400.0,0.00024931,2]
[378041306,1754676640928,-169.59,0.00024931,2]
[378041307,1754676640941,-400.0,0.00024931,2]
[378041308,1754676640952,-400.0,0.00024931,2]
[378041309,1754676640961,-400.0,0.00024931,2]
[378041310,1754676640971,-401.22,0.00024931,2]
[378041311,1754676640980,-400.0,0.00024931,2]
[378041312,1754676640989,-400.0,0.00024931,2]
[378041313,1754676640999,-177.2,0.00024931,2]
[378041314,1754676641009,-333.77,0.00024931,2]
[378041315,1754676641019,-401.59,0.00024931,2]
[378041316,1754676641028,-400.0,0.00024931,2]
[378041317,1754676641037,-400.0,0.00024931,2]
[378041318,1754676641047,-400.0,0.00024931,2]
[378041319,1754676641057,-168.91,0.00024931,2]
[378041320,1754676641076,-400.0,0.00024931,2]
[378041321,1754676641085,-400.0,0.00024931,2]
[378041322,1754676641095,-400.0,0.00024931,2]
[378041323,1754676641105,-400.0,0.00024931,2]
[378041324,1754676641114,-299.16,0.00024931,2]
[378041325,1754676641124,-400.0,0.00024931,2]
[378041326,1754676641133,-400.0,0.00024931,2]
[378041327,1754676641143,-400.0,0.00024931,2]
[378041328,1754676641152,-416.15,0.00024931,2]
[378041329,1754676641162,-225.72,0.00024931,2]
[378041330,1754676641171,-400.0,0.00024931,2]
[378041331,1754676641180,-429.09,0.00024931,2]
[378041332,1754676641190,-347.15,0.00024931,2]
[378041333,1754676641199,-487.14,0.00024931,2]
[378041334,1754676641209,-238.47,0.00024931,2]
[378041335,1754676641219,-400.0,0.00024931,2]
[378041336,1754676641228,-400.0,0.00024931,2]
[378041337,1754676641237,-525.96,0.00024931,2]
[378041338,1754676641247,-400.0,0.00024931,2]
[378041339,1754676641257,-400.0,0.00024931,2]
[378041340,1754676641266,-312.15,0.00024931,2]
[378041341,1754676641276,-400.0,0.00024931,2]
[378041342,1754676641285,-287.43,0.00024931,2]
[378041343,1754676641294,-400.0,0.00024931,2]
[378041344,1754676641304,-400.0,0.00024931,2]
[378041345,1754676641313,-239.76,0.00024931,2]
[378041346,1754676641323,-400.0,0.00024931,2]
[378041347,1754676641333,-400.0,0.00024931,2]
[378041348,1754676641343,-400.0,0.00024931,2]
[378041349,1754676641352,-434.26,0.00024931,2]
[378041350,1754676641362,-439.81,0.00024931,2]
[378041351,1754676641371,-400.0,0.00024931,2]
[378041352,1754676641380,-400.0,0.00024931,2]
[378041353,1754676641389,-400.0,0.00024931,2]
[378041354,1754676641401,-256.28,0.00024964,2]
[378041355,1754676641409,-400.0,0.00024964,2]
[378041356,1754676641417,-400.0,0.00024964,2]
[378041357,1754676641427,-400.0,0.00024964,2]
[378041358,1754676641439,-400.52,0.00024964,2]
[378041359,1754676641449,-374.85,0.00024964,2]
[378041360,1754676641459,-440.4,0.00024964,2]
[378041361,1754676641468,-400.0,0.00024964,2]
[378041362,1754676641478,-400.0,0.00024964,2]
[378041363,1754676641487,-400.0,0.00024964,2]
[378041364,1754676641496,-400.0,0.00024964,2]
[378041365,1754676641506,-46553.7401283,0.00024975,3]
[378041366,1754676641515,-60936.6192245,0.00024985,3]
[378041367,1754676641525,-30468.3096122,0.00024986,3]
[378041368,1754676641534,-160.0,0.00025,30]
[378041369,1754676641544,-457.64618948,0.00025,3]
[378041370,1754676641553,-842.44706758,0.00025,3]
[378041371,1754676641562,-660.0,0.00025131,7]
[378041372,1754676641572,-1888.0,0.00025157,3]
[378041373,1754676641582,-23276.8700641,0.00025175,3]
[378041374,1754676641591,-30468.3096122,0.00025185,3]
[378041375,1754676641600,-277.35679052,0.00025201,2]
[378041376,1754676641609,-260.77,0.00025205,2]
[378041377,1754676641618,-207.99,0.00025205,2]
[378041378,1754676641627,-447.8,0.00025205,2]
[378041379,1754676641636,-199.49010897,0.00025205,2]
[378041380,1754676641646,-221.5,0.00025205,2]
[378041381,1754676641655,-439.26,0.00025205,2]
[378041382,1754676641665,-400.0,0.00025205,2]
[378041383,1754676641674,-400.0,0.00025205,2]
[378041384,1754676641683,-400.0,0.00025205,2]
[378041385,1754676641693,-400.0,0.00025205,2]
[378041386,1754676641702,-400.0,0.00025205,2]
[378041387,1754676641711,-400.0,0.00025205,2]
[378041388,1754676641721,-400.0,0.00025205,2]
[378041389,1754676641729,-426.83,0.00025205,2]
[378041390,1754676641738,-546.26,0.00025205,2]
[378041391,1754676641747,-503.05,0.00025205,2]
[378041392,1754676641757,-400.0,0.00025205,2]
[378041393,1754676641767,-400.0,0.00025205,2]
[378041394,1754676641776,-351.07,0.00025205,2]
[378041395,1754676641786,-389.03,0.00025205,2]
[378041396,1754676641794,-288.53989189,0.00025205,2]
[378041397,1754676641807,-400.0,0.00025205,2]
[378041398,1754676641815,-400.0,0.00025205,2]
[378041399,1754676641824,-549.15,0.00025205,2]
[378041400,1754676641834,-400.0,0.00025205,2]
[378041401,1754676641845,-1037.96,0.00025205,2]
[378041402,1754676641854,-951.46,0.00025205,2]
[378041403,1754676641863,-244.27,0.00025205,2]
[378041404,1754676641873,-400.0,0.00025205,2]
[378041405,1754676641883,-400.0,0.00025205,2]
[378041406,1754676641892,-400.0,0.00025205,2]
[378041407,1754676641901,-325.99,0.00025205,2]
[378041408,1754676641917,-158.09,0.00025205,2]
[378041409,1754676641926,-510.0,0.00025205,2]
[378041410,1754676641935,-400.0,0.00025205,2]
[378041411,1754676641945,-400.0,0.00025205,2]
[378041412,1754676641955,-400.0,0.00025205,2]
[378041413,1754676641964,-400.0,0.00025205,2]
[378041414,1754676641974,-400.0,0.00025205,2]
[378041415,1754676641983,-525.57,0.00025205,2]
[378041416,1754676641992,-400.0,0.00025205,2]
[378041417,1754676642002,-495.05,0.00025205,2]
[378041418,1754676642011,-400.0,0.00025205,2]
[378041419,1754676642020,-428.34,0.00025205,2]
[378041420,1754676642029,-400.0,0.00025205,2]
[378041421,1754676642039,-400.0,0.00025205,2]
[378041422,1754676642048,-400.0,0.00025205,2]
[378041423,1754676642057,-400.0,0.00025205,2]
[378041424,1754676642067,-400.0,0.00025205,2]
[378041425,1754676642075,-411.19,0.00025205,2]
[378041426,1754676642085,-400.0,0.00025205,2]
[378041427,1754676642094,-400.0,0.00025205,2]
[378041428,1754676642103,-400.0,0.00025205,2]
[378041429,1754676642114,-400.0,0.00025205,2]
[378041430,1754676642123,-400.0,0.00025205,2]
[378041431,1754676642135,-313.86,0.00025205,2]
[378041432,1754676642148,-400.0,0.00025205,2]
[378041433,1754676642157,-400.0,0.00025205,2]
[378041434,1754676642167,-400.0,0.00025205,2]
[378041435,1754676642177,-400.0,0.00025205,2]
[378041436,1754676642187,-400.0,0.00025205,2]
[378041437,1754676642196,-400.0,0.00025205,2]
[378041438,1754676642206,-400.0,0.00025205,2]
[378041439,1754676642215,-400.0,0.00025205,2]
[378041440,1754676642226,-400.0,0.00025205,2]
[378041441,1754676642235,-439.81,0.00025205,2]
[378041442,1754676642245,-400.0,0.00025205,2]
[378041443,1754676642254,-400.0,0.00025205,2]
[378041444,1754676642264,-539.24,0.00025205,2]
[378041445,1754676642273,-93107.4802566,0.00025208,3]
[378041446,1754676642283,-71636.62882418,0.00025218,3]
[378041447,1754676642297,-405.79998,0.00025218,3]
[378041448,1754676642308,-49756.41451116,0.00025218,3]
[378041456,1754676642720,-1888.0,0.00021225,3]
[378041457,1754676642730,-3776.0,0.00023465,3]
[378041458,1754676642740,-873.154307,0.00025218,3]
[378041459,1754676642776,-29669.55043866,0.00025218,3]
[378041460,1754676642785,-2090.37325085,0.00025218,3]
[378041461,1754676642884,-504.587572,0.00025218,3]
[378041462,1754676642896,-3035.59793495,0.00025218,3]
[378041463,1754676642994,-2074.3,0.00025218,3]
[378041464,1754676643005,-3874.88907183,0.00025218,3]
[378041469,1754676645699,-719.81830657,0.00025218,3]
[378041470,1754676645824,-3331.86190857,0.00025218,3]
[378041471,1754676645908,-12062.52822608,0.00025218,3]
[378041472,1754676645985,-16278.4378624,0.00025218,3]
[378041473,1754676646040,-3160.76177555,0.00025218,3]
[378041715,1754677180655,151.42,0.00013699,2]
[378041719,1754677534081,250.0,0.00015,2]
[378041726,1754677628277,450.968395,7.945e-05,2]
[378041727,1754677657437,27.021605,0.00018,2]
[378041728,1754677657461,37614.44952131,0.00018,2]
[378041751,1754677831863,-156.15,0.00018593,2]
[378041752,1754677831873,-1549.47559419,0.00018599,2]
[378041753,1754677831884,-950.52440581,0.00018599,2]
[378041754,1754677831893,-2500.0,0.00018606,2]
[378041755,1754677831902,-2500.0,0.00018763,2]
[378041756,1754677831912,-2258.27013724,0.0001899,2]
[378041757,1754677831921,-191.42,0.0001899,2]
[378041758,1754677831930,-500.0,0.00018999,2]
[378041759,1754677831940,-500.0,0.00018999,2]
[378041760,1754677831949,-500.0,0.00018999,2]
[378041761,1754677831959,-500.0,0.00018999,2]
[378041762,1754677831969,-500.0,0.00018999,2]
[378041763,1754677831981,-500.0,0.00018999,2]
[378041764,1754677831990,-282.78545695,0.00018999,2]
[378041765,1754677832018,-288.84176267,0.00018999,2]
[378041766,1754677832028,-500.0,0.00018999,2]
[378041767,1754677832037,-208.25848813,0.00018999,2]
[378041768,1754677832047,-151.24256375,0.00018999,2]
[378041769,1754677832056,-500.0,0.00018999,2]
[378041770,1754677832065,-1462.05,0.00019,2]
[378041771,1754677832078,-87.04861281,0.00019,2]
[378041772,1754677832090,-28521.26729063,0.00019,2]
[378041773,1754677832110,-8103.80897996,0.00019,2]
[378041774,1754677832120,-1239.01972034,0.00019,2]
[378041775,1754677832135,-788.20583031,0.00019,2]
[378041776,1754677832149,-1447.77964303,0.00019,2]
[378041777,1754677832162,-107280.00002881,0.00019,2]
[378041778,1754677832182,-60818.06394458,0.00019,2]
[378041779,1754677832191,-1325.32048927,0.00019,2]
[378041780,1754677832200,-1502.93730487,0.00019,2]
[378041781,1754677832209,-129130.83160442,0.00019,2]
[378041782,1754677832219,-179.67553211,0.00019014,2]
[378041783,1754677832228,-500.33362806,0.00019114,2]
[378041784,1754677832237,-3029.51364623,0.00019214,2]
[378041785,1754677832247,-1549.19999998,0.0001988,2]
[378041786,1754677832256,-159.41263555,0.0001991,2]
[378041787,1754677832266,-3144.56194722,0.0002,2]
[378041788,1754677832275,-1488.01220518,0.0002,2]
[378041789,1754677832284,-48496.58635017,0.0002,2]
[378041790,1754677832293,-5019.19843891,0.0002001,2]
[378041791,1754677832303,-5772.0,0.0002001,2]
[378041792,1754677832312,-2500.0,0.00020452,2]
[378041793,1754677832321,-500.0,0.00020452,2]
[378041794,1754677832330,-2500.0,0.00020452,2]
[378041795,1754677832340,-500.0,0.00020452,2]
[378041796,1754677832349,-165.56,0.00020824,2]
[378041798,1754677832358,-151.42,0.00020951,2]
[378041800,1754677832367,-200.0,0.00021,2]
[378041802,1754677832376,-156.15,0.00021122,2]
[378041804,1754677832385,-500.33362802,0.00021187,2]
[378041805,1754677832394,-3029.5136462,0.00021276,2]
[378041806,1754677832403,-150.0,0.00021559,2]
[378041807,1754677832412,-384.38,0.00021654,2]
[378041808,1754677832421,-892.0,0.00021654,2]
[378041809,1754677832430,-1252.0,0.00021654,2]
[378041810,1754677832439,-3360.0,0.00021654,2]
[378041811,1754677832449,-158.23,0.00021876,2]
[378041812,1754677832458,-150.0,0.00021918,2]
[378041813,1754677832467,-200.0,0.000221,2]
[378041814,1754677832476,-234.96586751,0.0002211,2]
[378041815,1754677832485,-500.0,0.00022137,2]
[378041816,1754677832494,-34681.44544043,0.000225,2]
[378041817,1754677832503,-211.62674257,0.00022641,2]
[378041818,1754677832513,-842.44706758,0.00022641,2]
[378041819,1754677832522,-457.64618948,0.00022641,2]
[378041820,1754677832531,-160.0,0.00022642,2]
[378041821,1754677832541,-500.33362802,0.0002326,2]
[378041822,1754677832550,-250.0,0.00023261,2]
[378041823,1754677832560,-1000.0,0.00023267,2]
[378041824,1754677832569,-3029.5136462,0.00023338,2]
[378041825,1754677832579,-5000.0,0.00023395,2]
[378041826,1754677832588,-156.15,0.00023651,2]
[378041827,1754677832597,-191.42,0.00023736,2]
[378041828,1754677832607,-23900.0,0.00023746,2]
[378041829,1754677832616,-494.77,0.00023777,2]
[378041830,1754677832625,-167.13,0.00023781,2]
[378041831,1754677832634,-267.46074303,0.00023832,2]
[378041832,1754677832643,-500.0,0.00023932,2]
[378041833,1754677832652,-666.0,0.00023974,3]
[378041834,1754677832661,-5000.00440559,0.00024,5]
[378041835,1754677832671,-158.23,0.00024063,2]
[378041836,1754677832680,-24954.8463,0.0002417,2]
[378041837,1754677832689,-205.41983062,0.00024483,2]
[378041838,1754677832699,-4319.2904034,0.000245,2]
[378041839,1754677832708,-4319.29040328,0.000245,2]
[378041840,1754677832717,-4319.29040328,0.000245,2]
[378041841,1754677832726,-4319.29040328,0.000245,2]
[378041842,1754677832735,-2747.47746347,0.000245,2]
[378041843,1754677832756,-1571.81293981,0.000245,2]
[378041844,1754677832765,-2760.27769546,0.000245,2]
[378041852,1754677837796,-1888.0,0.00019714,3]
[378041853,1754677837805,-3776.0,0.00021954,3]
[378041854,1754677837815,-1559.01270782,0.000245,2]
[378041855,1754677837824,-4319.29040328,0.000245,2]
[378041856,1754677837833,-150.0,0.000245,2]
[378041857,1754677837842,-16225.5956,0.00024557,2]
[378041858,1754677837851,-712.003,0.00024654,2]
[378041859,1754677837860,-400.0,0.00024657,2]
[378041860,1754677837869,-400.0,0.00024657,2]
[378041861,1754677837878,-400.0,0.00024657,2]
[378041862,1754677837887,-400.0,0.00024657,2]
[378041863,1754677837897,-199.49010897,0.00024657,2]
[378041864,1754677837906,-400.0,0.00024657,2]
[378041865,1754677837916,-400.0,0.00024657,2]
[378041866,1754677837926,-400.0,0.00024657,2]
[378041867,1754677837935,-400.0,0.00024657,2]
[378041868,1754677837944,-400.0,0.00024657,2]
[378041869,1754677837955,-314.81,0.00024657,2]
[378041870,1754677837964,-400.0,0.00024657,2]
[378041871,1754677837974,-450.27,0.00024657,2]
[378041872,1754677837984,-400.0,0.00024657,2]
[378041873,1754677837993,-152.84558692,0.00024657,2]
[378041874,1754677838002,-400.0,0.00024657,2]
[378041875,1754677838011,-309.49,0.00024657,2]
[378041876,1754677838021,-400.0,0.00024657,2]
[378041877,1754677838031,-400.0,0.00024657,2]
[378041878,1754677838041,-225.72,0.00024657,2]
[378041879,1754677838051,-400.0,0.00024657,2]
[378041880,1754677838060,-400.0,0.00024657,2]
[378041881,1754677838069,-400.0,0.00024657,2]
[378041882,1754677838078,-400.0,0.00024657,2]
[378041883,1754677838087,-487.14,0.00024657,2]
[378041884,1754677838096,-400.0,0.00024657,2]
[378041885,1754677838106,-400.0,0.00024657,2]
[378041886,1754677838115,-469.88285639,0.00024657,2]
[378041887,1754677838125,-400.0,0.00024657,2]
[378041888,1754677838135,-400.0,0.00024657,2]
[378041889,1754677838145,-400.0,0.00024657,2]
[378041890,1754677838154,-1000.0,0.00024658,2]
[378041891,1754677838165,-125012.916999,0.000248,3]
[378041892,1754677838175,-457.64618948,0.000248,3]
[378041894,1754677838184,-842.44706758,0.000248,3]
[378041896,1754677838194,-227.97,0.00024931,2]
[378041898,1754677838203,-442.18,0.00024931,2]
[378041900,1754677838212,-400.0,0.00024931,2]
[378041902,1754677838221,-400.0,0.00024931,2]
[378041904,1754677838230,-389.89,0.00024931,2]
[378041906,1754677838241,-400.0,0.00024931,2]
[378041908,1754677838251,-549.15,0.00024931,2]
[378041909,1754677838259,-400.0,0.00024931,2]
[378041911,1754677838269,-400.0,0.00024931,2]
[378041913,1754677838278,-400.0,0.00024931,2]
[378041914,1754677838287,-400.0,0.00024931,2]
[378041915,1754677838296,-400.0,0.00024931,2]
[378041916,1754677838305,-244.62375367,0.00024931,2]
[378041917,1754677838314,-400.0,0.00024931,2]
[378041918,1754677838323,-400.0,0.00024931,2]
[378041919,1754677838332,-400.0,0.00024931,2]
[378041920,1754677838342,-400.0,0.00024931,2]
[378041921,1754677838351,-536.0,0.00024932,7]
[378041922,1754677838360,-852.29249,0.0002495,2]
[378041923,1754677838369,-536.0,0.00025,7]
[378041924,1754677838378,-4482.03290439,0.00025,2]
[378041925,1754677838387,-793.67223559,0.00025,2]
[378041926,1754677838396,-150.0,0.000252,2]
[378041927,1754677838406,-277.35679052,0.00025201,2]
[378041928,1754677838415,-400.0,0.00025205,2]
[378041929,1754677838424,-207.34,0.00025205,2]
[378041930,1754677838433,-400.0,0.00025205,2]
[378041931,1754677838442,-400.0,0.00025205,2]
[378041932,1754677838451,-530.41,0.00025205,2]
[378041933,1754677838461,-309.07211139,0.00025205,2]
[378041934,1754677838470,-400.0,0.00025205,2]
[378041935,1754677838480,-239.3,0.00025205,2]
[378041936,1754677838489,-400.0,0.00025205,2]
[378041937,1754677838499,-192.26,0.00025205,2]
[378041938,1754677838509,-400.0,0.00025205,2]
[378041939,1754677838518,-400.0,0.00025205,2]
[378041940,1754677838527,-536.0,0.00025205,7]
[378041941,1754677838537,-1324.95293778,0.00025218,3]
[378041942,1754677838546,-1215.0,0.00025218,3]
[378041943,1754677838557,-1215.0,0.00025218,3]
[378041944,1754677838566,-1134.46207298,0.00025218,3]
[378041945,1754677838576,-500.33362802,0.00025333,2]
[378041946,1754677838585,-3029.5136462,0.00025399,2]
[378041947,1754677838595,-4319.29040328,0.00025425,2]
[378041948,1754677838605,-168.66,0.00025479,2]
[378041949,1754677838615,-406.34,0.00025479,2]
[378041950,1754677838623,-400.0,0.00025479,2]
[378041951,1754677838633,-400.0,0.00025479,2]
[378041952,1754677838643,-400.0,0.00025479,2]
[378041953,1754677838652,-493.67673551,0.00025479,2]
[378041954,1754677838661,-400.0,0.00025479,2]
[378041955,1754677838671,-536.0,0.00025479,7]
[378041956,1754677838680,-400.0,0.00025753,2]
[378041957,1754677838690,-400.0,0.00025753,2]
[378041958,1754677838699,-400.0,0.00025753,2]
[378041959,1754677838708,-400.0,0.00025753,2]
[378041960,1754677838717,-536.0,0.00025753,7]
[378041961,1754677838726,-536.0,0.0002589,7]
[378041962,1754677838737,-852.29249,0.0002595,2]
[378041963,1754677838747,-249.0,0.00026027,90]
[378041964,1754677838756,-382.8278924,0.00026027,2]
[378041965,1754677838765,-400.0,0.00026027,2]
[378041966,1754677838775,-400.0,0.00026027,2]
[378041967,1754677838785,-311.67910981,0.00026027,2]
[378041968,1754677838795,-1000.0,0.00026175,2]
[378041969,1754677838804,-156.15,0.0002618,2]
[378041970,1754677838815,-255.53701348,0.000262,2]
[378041971,1754677838824,-158.23,0.00026251,2]
[378041972,1754677838834,-2500.0,0.00026255,2]
[378041973,1754677838843,-31253.2292496,0.0002629,3]
[378041974,1754677838852,-239.76,0.000263,2]
[378041975,1754677838861,-434.26,0.000263,2]
[378041976,1754677838870,-400.0,0.000263,2]
[378041977,1754677838879,-400.0,0.000263,2]
[378041978,1754677838889,-400.0,0.000263,2]
[378041979,1754677838899,-400.0,0.000263,2]
[378041980,1754677838909,-400.0,0.000263,2]
[378041981,1754677838919,-221.5,0.000263,2]
[378041982,1754677838927,-400.0,0.000263,2]
[378041983,1754677838937,-490.76,0.000263,2]
[378041984,1754677838946,-198.74,0.000263,2]
[378041985,1754677838956,-358.67,0.000263,2]
[378041986,1754677838966,-400.0,0.000263,2]